Cogmind - Beta 13 *** ADVENTURER MODE // 2024.06.09 @ 19:33:37 Player: Deep Beef Result: Destroyed by QE-WP7(R) with Subdweller Laser Performance ------------- Evolutions (0) 0 Regions Visited (2) 400 Robots Destroyed (28) 140 Value Destroyed (890) 890 Prototype IDs (4) 80 Alien Tech Used (0) 0 Bonus (0) 0 TOTAL SCORE: 1510 Bonus ------- None Cogmind --------- Core Integrity 0/250 Matter 243/300 Energy 260/265 System Corruption 0% Temperature Cool (6) Movement Flying (235) Ox2 Location -10/Subcaves Parts ------- > --- POWER (1) -------- Improved Ion Engine > --- PROPULSION (2) --- Makeshift Flight Unit > --- UTILITY (2) ------ Small Storage Unit Makeshift Light Armor Plating > --- WEAPON (2) ------- Mini Grenade Launcher Makeshift Sword > --- INVENTORY (8) ---- Improved Ion Engine Makeshift Hover Unit Makeshift System Shield Heavy Assault Rifle Heavy Assault Rifle Makeshift Shrapnel Gun Multitool Makeshift Spear Peak State ------------ > --- POWER ------------ Improved Ion Engine > --- PROPULSION ------- Aluminum Leg Makeshift Flight Unit > --- UTILITY ---------- Small Storage Unit Makeshift Light Armor Plating > --- WEAPON ----------- Mini Grenade Launcher Makeshift Sword > --- INVENTORY -------- Improved Ion Engine Makeshift Hover Unit Makeshift System Shield Heavy Assault Rifle Heavy Assault Rifle Makeshift Shrapnel Gun Multitool Makeshift Spear [Rating: 20] Favorites ----------- Power Improved Ion Engine Engine Improved Ion Engine Power Core Light Nuclear Core Propulsion Aluminum Leg Leg Aluminum Leg Flight Unit Makeshift Flight Unit Utility Small Storage Unit Storage Small Storage Unit Protection Weapon Shielding Weapon Heavy Assault Rifle Energy Gun Medium Laser Ballistic Gun Heavy Assault Rifle Launcher Mini Grenade Launcher Impact Weapon Heavy Hammer Slashing Weapon Makeshift Sword Build | -11 -10 -10 ------- Run | Yrd Mat Sub Slots Evolved . | . . . Power . | . . . Propulsion . | . . . Utility . | . . . Weapon . | . . . Parts Attached 24 | 6 6 12 Power 5 | 1 3 1 Engine 4 | 1 2 1 Core 1 | . 1 . Reactor . | . . . Propulsion 5 | 2 . 3 Treads . | . . . Leg 4 | 2 . 2 Wheel . | . . . Hover . | . . . Flight 1 | . . 1 Utility 3 | 1 1 1 Device . | . . . Storage 1 | 1 . . Processor . | . . . Hackware . | . . . Protection 2 | . 1 1 Artifact . | . . . Weapon 11 | 2 2 7 Energy Gun 1 | 1 . . Energy Cannon . | . . . Ballistic Gun 5 | 1 1 3 Ballistic Cannon . | . . . Launcher 2 | . . 2 Special Weapon . | . . . Impact Weapon 2 | . 1 1 Slashing Weapon 1 | . . 1 Piercing Weapon . | . . . Special Melee Weapon . | . . . Unidentified Prototypes . | . . . Parts Lost 4 | . . 4 Power 1 | . . 1 Propulsion 3 | . . 3 Utility . | . . . Weapon . | . . . Highest Loss Streak 1 | . . 1 To Critical Strikes 1 | . . 1 Average Slot Usage (%) 93 | . 99 91 Engine 13 | . 14 13 Leg 21 | . 28 19 Storage 14 | . 14 14 Protection 13 | . 13 14 Energy Gun 3 | . 11 . Ballistic Gun 8 | . 14 6 Launcher 7 | . . 10 Impact Weapon 1 | . 2 . Slashing Weapon 7 | . . 10 Naked Turns . | . . . Heaviest Build 19 | 11 19 19 Greatest Support 30 | 20 20 30 Greatest Overweight (x) 6 | 2 . 6 Average Overweight (x) . | . . . Largest Inventory Capacity 8 | 8 8 8 Average Capacity 7 | 7 8 8 Most Carried 8 | . 6 8 Average Carried 6 | . 4 7 Final Capacity 8 | 8 8 8 Final Carried 8 | . 6 8 Class Distribution -------------------- 100% | Mutant Dominant Class ---------------- Mutant | -10/Materials Mutant | -10/Subcaves Resources | -11 -10 -10 ----------- Run | Yrd Mat Sub Matter Collected 869 | 222 197 450 Remotely . | . . . Salvage Created 891 | . 408 483 Parts 63 | . 32 31 Haulers Intercepted 1 | . 1 . Recyclers Shooed . | . . . Parts Field Recycled . | . . . Retrieved Matter . | . . . Parts Self-Destructed 1 | . . 1 Prevented . | . . . Kills | -11 -10 -10 ------- Run | Yrd Mat Sub Combat Hostiles Destroyed 24 | . 9 15 Melee 2 | . . 2 Guns 11 | . 9 2 AOE 11 | . . 11 Classes Destroyed 8 | . 6 2 Builder 1 | . 1 . Tunneler 1 | . 1 . Hauler 1 | . 1 . Watcher 1 | . 1 . Swarmer 3 | . 3 . Grunt 6 | . 6 . Artisan 1 | . . 1 Subdweller 15 | . . 15 Best Kill Streak 5 | . 5 2 Combat Bots Only 5 | . 5 2 Max Kills in Single Turn 1 | . 1 1 Gunslinging . | . . . Exploded 1 | . . 1 Melee 1 | . . 1 Uniques/NPCs Destroyed . | . . . Combat | -11 -10 -10 -------- Run | Yrd Mat Sub Hostile Shots Fired 75 | . 29 46 Missed 19 | . 9 10 Damage Taken 904 | . 182 722 Core 254 | . 33 221 Absorbed by Shields . | . . . Redirected to Shielding 38 | . 13 25 Ignored by Resistances 243 | . 57 186 Core Remaining (%) 100 | 100 . . Volleys Fired 82 | . 35 47 Largest 2 | . 2 2 Hottest 73 | . 73 46 Shots Fired 134 | . 70 64 Gun 104 | . 70 34 Cannon . | . . . Launcher 30 | . . 30 Special . | . . . Kinetic 69 | . 35 34 Thermal 35 | . 35 . Explosive 30 | . . 30 Electromagnetic . | . . . Robot Hit Streak 22 | . 22 16 Robot Miss Streak 3 | . 3 1 Penetration Max . | . . . Secondary Targets 1 | . 1 . Max Gunslinging Chain 1 | . 1 . Shots Hit Robots 102 | . 56 46 Core Hits 52 | . 21 31 Critical Kills 1 | . . 1 Critical Parts Destroyed . | . . . Critical Strikes 7 | . 5 2 Burn 5 | . 5 . Destroy 1 | . . 1 Sever 1 | . . 1 Melee Attacks 33 | . 13 20 Impact 16 | . 13 3 Slashing 17 | . . 17 Piercing . | . . . Sneak Attacks 2 | . 1 1 Combat Hostiles . | . . . Follow-up Attacks . | . . . Damage Inflicted 3308 | . 859 2449 Guns 1011 | . 744 267 Cannons . | . . . Explosions 1892 | . . 1892 Melee 405 | . 115 290 Ramming . | . . . Kinetic 660 | . 393 267 Thermal 351 | . 351 . Explosive 1892 | . . 1892 Electromagnetic . | . . . Impact 115 | . 115 . Slashing 290 | . . 290 Piercing . | . . . Highest Corruption . | . . . Average Corruption . | . . . Corruption Purged . | . . . Corruption Blocked . | . . . Overload Shots . | . . . Overflow Damage 85 | . 85 . Projectiles . | . . . Explosions . | . . . Melee 85 | . 85 . Knockbacks . | . . . Impact . | . . . Kinetic . | . . . Secondary . | . . . Self-Inflicted Damage 42 | . . 42 Shots 3 | . . 3 Rammed . | . . . Targets Rammed . | . . . Kicked . | . . . Crushed . | . . . Highest Temperature 207 | . 207 202 Average Temperature 55 | . 53 111 Received Heat Transfer 470 | . 120 350 Siege Activations . | . . . Robots Corrupted . | . . . Combat Hostiles . | . . . Parts Fried . | . . . Impact Corruptions 1 | . 1 . Robots Melted . | . . . Combat Hostiles . | . . . Parts Melted 2 | . 2 . Heat Transferred 1406 | . 1406 . Parts Sabotaged . | . . . Parts Stolen . | . . . Parts Stripped . | . . . Power Chain Reactions . | . . . Alert | -11 -10 -10 ------- Run | Yrd Mat Sub Peak Influence 193 | . 193 . Initial . | . . . Average 59 | . 63 . Maximum Alert Level . | . . . Low Security (%) 100 | 100 100 . Level 1 . | . . . Level 2 . | . . . Level 3 . | . . . Level 4 . | . . . Level 5 . | . . . High Security . | . . . Max Security . | . . . Squads Dispatched 1 | . 1 . Investigation 1 | . 1 . Extermination . | . . . Reinforcement . | . . . Assault . | . . . Garrison . | . . . Intercept . | . . . Searches Triggered . | . . . Construction Impeded . | . . . Haulers Reinforced . | . . . Active Scanning Responses . | . . . Cargo Convoy Interrupts . | . . . Stealth | -11 -10 -10 --------- Run | Yrd Mat Sub Distress Signals . | . . . Communications Jammed . | . . . Distress Signals . | . . . Times Spotted 35 | . 16 19 Peak Tracking Total 3 | . 3 2 Tactical Retreats 3 | . 2 1 Traps | -11 -10 -10 ------- Run | Yrd Mat Sub Traps Triggered 2 | . 1 1 Indirectly . | . . . Trap Hack Attempts . | . . . Triggered . | . . . Disarmed . | . . . Reprogrammed . | . . . Reused . | . . . Traps Extracted . | . . . Installed . | . . . Triggered . | . . . Machines | -11 -10 -10 ---------- Run | Yrd Mat Sub Machines Disabled . | . . . Max in Single Turn . | . . . Machines Repaired . | . . . Machines Dismantled . | . . . Machines Sabotaged . | . . . Overloaded Fab Kills . | . . . Hacking | -11 -10 -10 --------- Run | Yrd Mat Sub Machines Accessed 7 | . 6 1 Terminals 6 | . 6 . Fabricators . | . . . Repair Stations . | . . . Recycling Units . | . . . Scanalyzers . | . . . Garrison Access . | . . . Total Hacks 23 | . 22 1 Successful 15 | . 14 1 Failed 7 | . 7 . Catastrophic . | . . . Database Lockouts 1 | . 1 . Manual 17 | . 17 . Terminals 22 | . 22 . Fabricators . | . . . Repair Stations . | . . . Recycling Units . | . . . Scanalyzers . | . . . Garrison Access . | . . . Terminal Hacks 11 | . 10 1 Record 1 | . . 1 Robot Analysis 2 | . 2 . Prototype ID Bank 2 | . 2 . Terminal Index 1 | . 1 . Locate Traps 1 | . 1 . Surveillance Status 1 | . 1 . Hauler Manifests 1 | . 1 . Zone Layout 2 | . 2 . Fabricator Hacks . | . . . Repair Station Hacks . | . . . Recycling Unit Hacks . | . . . Scanalyzer . | . . . Garrison Access Hacks . | . . . Unauthorized Hacks 4 | . 4 . Terminals 4 | . 4 . Botnet 4 | . 4 . Fabricators . | . . . Repair Stations . | . . . Recycling Units . | . . . Scanalyzers . | . . . Garrison Access . | . . . Data Cores Recovered . | . . . Used . | . . . Hacking Detections 7 | . 7 . Full Trace Events . | . . . Feedback Events . | . . . Feedback Blocked . | . . . Robot Schematics Acquired . | . . . Robots Built . | . . . Authchips . | . . . Time . | . . . Total Robot Build Rating . | . . . Part Schematics Acquired . | . . . Parts Built . | . . . Authchips . | . . . Time . | . . . Total Part Build Rating . | . . . Parts Repaired . | . . . Time . | . . . Parts Recycled . | . . . Recycled Matter . | . . . Retrieved Matter . | . . . Retrieved Components . | . . . Parts Scanalyzed . | . . . Part Schematics Acquired . | . . . Parts Damaged . | . . . Bothacking | -11 -10 -10 ------------ Run | Yrd Mat Sub Used RIF Installer . | . . . Robots Hacked . | . . . Non-combat . | . . . Combat . | . . . Robot Hacks Applied . | . . . Relay Couplers Released . | . . . Fabnet Peak Effective % . | . . . Robots Rewired . | . . . Allies Hacked . | . . . Hacks Repelled . | . . . Allies | -11 -10 -10 -------- Run | Yrd Mat Sub Total Allies . | . . . Largest Group . | . . . Highest-Rated Group . | . . . Highest-Rated Ally . | . . . Total Orders . | . . . Ally Attacks . | . . . Total Damage . | . . . Kills . | . . . Allies Corrupted . | . . . Allies Melted . | . . . Intel | -11 -10 -10 ------- Run | Yrd Mat Sub Robot Analysis Total 2 | . 2 . Derelict Logs Recovered 2 | . . 2 Drone Launches . | . . . Drone Recoveries . | . . . Exploration | -11 -10 -10 ------------- Run | Yrd Mat Sub Turns Passed 2898 | 45 820 2033 Spaces Moved 1733 | 31 540 1162 Core 9 | 4 . 5 Treads . | . . . Legs 1722 | 27 540 1155 Wheels . | . . . Hover . | . . . Flight 2 | . . 2 Fastest Speed 50 | 50 120 120 Average Speed 145 | 119 120 158 Slowest Speed 350 | 150 120 350 Overloaded Moves . | . . . Propulsion Burnouts . | . . . Robots Hopped . | . . . Cave-ins Triggered . | . . . Exploration Rate (%) 47 | 3 72 66 Regions Visited 2 Branch Regions 1 Pre-discovered Areas 1 | . . 1 Known Exits Taken . | . . . Unknown Exits Taken 2 | 1 1 . Scrap Searched 14 | . . 14 Spaces Dug 4 | . 4 . Terrain Destroyed 171 | . 4 167 Melee 4 | . 4 . Projectile . | . . . AOE 167 | . . 167 Terrain Rammed . | . . . Walls Destroyed . | . . . Machines Disabled . | . . . Actions | -11 -10 -10 --------- Run | Yrd Mat Sub Total 1922 | 36 619 1267 Wait 28 | . 14 14 Move 1731 | 30 539 1162 Hop . | . . . Pick Up 14 | . 7 7 Fast Attach 12 | 6 3 3 Attach 1 | . . 1 Detach . | . . . Swap 11 | . 3 8 Drop 10 | . 5 5 Fire 82 | . 35 47 Melee 33 | . 13 20 Ram . | . . . Kick . | . . . Crush . | . . . Escape Stasis . | . . . Rewire . | . . . Trap . | . . . Miscellaneous . | . . . Route ------- -11/Scrapyard -10/Materials (discovered 6 exits: [*Mat x3] / [*Min x2] / *Sub) -10/Subcaves (discovered 2 exits: [*Mat x2]) History --------- Turn | Location | Event 21 | -11/Scrapyard | Discovered new exit (range 16) 46 | -11/Scrapyard | Entered Materials 106 | -10/Materials | Discovered new exit (range 11) 172 | -10/Materials | Discovered new exit (range 16) 275 | -10/Materials | Discovered new exit (range 15) 313 | -10/Materials | Build established: Mutant 419 | -10/Materials | Discovered new exit (range 16) 616 | -10/Materials | Central database locked down 751 | -10/Materials | Discovered new exit (range 6) 862 | -10/Materials | Discovered new exit (range 3) 866 | -10/Materials | Entered Subcaves 889 | -10/Subcaves | Shifting Twisted Machinery released Flamer 956 | -10/Subcaves | Shifting Twisted Machinery released Sub. Machine Gun 1325 | -10/Subcaves | Discovered new exit (range 15) 1337 | -10/Subcaves | Learned location of Zion (-7) 1337 | -10/Subcaves | Met a Zionite searching for "candidates" 1523 | -10/Subcaves | Visited Clippyterm 1666 | -10/Subcaves | Disturbed a concealed Subdweller 1877 | -10/Subcaves | Shifting Twisted Machinery released Piercing Trap 1977 | -10/Subcaves | Learned Materials stockpile data 2378 | -10/Subcaves | Learned Materials emergency access door positions 2786 | -10/Subcaves | Core integrity fell below 50% 2831 | -10/Subcaves | Discovered new exit (range 9) 2872 | -10/Subcaves | Core integrity fell below 20% 2899 | -10/Subcaves | Destroyed by QE-WP7(R) with Subdweller Laser Last Messages --------------- J8-JB0(R) destroyed. The unstable cave ceiling collapses. Y2-XBJ(R): "FREEEEDUMB!" Y2-XBJ(R) destroyed. K4-T26(R) destroyed. The unstable cave ceiling collapses. K8-FE1(R) destroyed. Acquired 24 matter. The unstable cave ceiling collapses. Acquired 10 matter. The unstable cave ceiling collapses. EXIT=FOUND WC-4LX(R) destroyed. Aluminum Leg destroyed. 9J-JZL(R) destroyed. The unstable cave ceiling collapses. Acquired 19 matter. QE-WP7(R): "MADSUB!" Acquired 31 matter. The unstable cave ceiling collapses. Map ----- +----------------------------------------------------+ | ?????????????????????????????????????????????????? | | ?????????????????????????????????????????????????? | | ?????????????????????????????????????????????????? | | ?????????????????????????????????????????????????? | | ?????????????????????????????????????????????????? | | ?????????????????????????????????????????????????? | | ?????????????????????????????????????????????????? | | ?????????????????????????????????????????????????? | | ?????????????????????????????????????????????????? | | ?????????????????????????????????????????????????? | | ?????????????????????????????????????????????????? | | ?????????????????????????????????????????????????? | | #????????????????????????????????????????????????? | | ###??????????????????????????????????????????????? | | ##?????????????????????????????????????????????? | | ????????????????????????????????????????????? | | ????????????????????????????????????????????? | | ?????????????????????#####??????????????????? | | ??????????###?##??##### ######??###????????? | | ??????????? # |##" # ## ???????? | | ?????????????? =%=""""" ???????? | | ??????????????? "" """""" ????????? | | ????????????????# "" """"" # #???????????? | | ???????????##????# """" "" #??????????? | | ?####?????# #???## """R # ##?????????? | | ## ###### #???# """ @* # # #?????????? | | ## # ##??# ## [ #??????????????? | | " " #??#" "< ## & #??????????????? | | ## " #?????#""" # #??????????????? | | #?###??##" # ##??????????????? | | ###"####" ### #???????????????? | | ! ####??? #???????????????? | | # # #####?????? #???????????????? | | # # ##" ######??????????? ???????????????? | | # # ###########????????????????#???????????????? | | #######??????????????????????????????????????????? | | ?????????????????????????????????????????????????? | | ?????????????????????????????????????????????????? | | ?????????????????????????????????????????????????? | | ?????????????????????????????????????????????????? | | ?????????????????????????????????????????????????? | | ?????????????????????????????????????????????????? | | ?????????????????????????????????????????????????? | | ?????????????????????????????????????????????????? | | ?????????????????????????????????????????????????? | | ?????????????????????????????????????????????????? | | ?????????????????????????????????????????????????? | | ?????????????????????????????????????????????????? | | ?????????????????????????????????????????????????? | | ?????????????????????????????????????????????????? | +----------------------------------------------------+ Best States ------------- Heat Dissipation 25 Energy Generation 12 Energy Capacity 265 Matter Stores 300 Matter Capacity 300 Sight Range 16 Terrain Scan Density 10 Armor Coverage 100 Resistance: KI 20 Resistance: TH 20 Resistance: EX 20 Resistance: EM 20 Resistance: I 20 Resistance: S 20 Resistance: P 20 Weapon Shielding 33 Evasion (%) 55 Offensive Hacking 10 Item Schematics ----------------- None Robot Schematics ------------------ None Fabricated ------------ Nothing Alien Tech Used ----------------- None Achievements -------------- None Challenges ------------ None Game ------ Seed ShrapnelPointyInjector Manual? 0 Play Time 00:28:29 Cumulative 179.7 hours Start 2024.06.09 @ 19:07:14 End 2024.06.09 @ 19:33:37 Sessions 1 Manual Loads 0 Difficulty Adventurer Special Mode None Game No. 135 Rogue 72 Adventurer 63 Explorer 0 Win Type - Total 1 Types 1/0/0/0/0/0/0/0/0 Lore% 47 Gallery% 63 Achievement% 47 Wizard Run 0 Options --------- Layout 1 ASCII 0 Keyboard 0 Movement Mouse Keybinds 0 Fullscreen 1 Font 16/SmallcapsGlow Map View 55x38 Zoom Use 0% Tactical HUD 0 Map Filters NONE Filters NONE Steam 1 RUN: 7b7e61fc-0a76-4690-b4b6-ca1ede3590f2